bitfinex/quotes_SOLUSD_20250316
["timestamp","ask_amount","ask_price","bid_price","bid_amount"]
[1742089006109,82.2,135.61,135.57,33.87752091]
[1742089006411,82.2,135.61,135.59,33.87752091]
[1742089006792,82.2,135.61,135.57,7.3762]
[1742089006992,0.03,135.62,135.59,33.87752091]
[1742089007489,0.03,135.62,135.6,33.87752091]
[1742089007889,0.03,135.62,135.59,33.87752091]
[1742089008092,0.03,135.62,135.6,33.87752091]
[1742089008395,0.03,135.62,135.61,33.87752091]
[1742089010198,0.03,135.62,135.57,33.87752091]
[1742089010513,33.87752091,135.61,135.56,33.87752091]
[1742089010906,33.87752091,135.61,135.53,13.8593]
[1742089010907,33.87752091,135.59,135.53,33.87752091]
[1742089011108,33.87752091,135.57,135.49,7.3806]
[1742089011313,82.2,135.6,135.54,33.87752091]
[1742089011606,82.2,135.6,135.58,33.87752091]
[1742089012215,6.091,135.61,135.58,33.37752091]
[1742089012406,6.091,135.61,135.59,33.87752091]
[1742089012604,1.5396,135.62,135.59,33.87752091]
[1742089012917,1.5396,135.62,135.58,33.87752091]
[1742089013093,35.41712091,135.62,135.57,33.87752091]
[1742089013490,1.5396,135.62,135.57,33.87752091]
[1742089013889,8.9132,135.62,135.57,33.87752091]
[1742089014090,0.03,135.62,135.59,33.87752091]
[1742089014315,0.03,135.62,135.6,33.87752091]
[1742089014993,0.03,135.62,135.59,33.87752091]
[1742089015604,0.03,135.62,135.6,33.87752091]
[1742089016008,0.03,135.62,135.59,33.87752091]
[1742089017317,0.03,135.62,135.6,33.87752091]
[1742089017821,0.03,135.62,135.56,7.3768]
[1742089017999,0.03,135.62,135.58,33.87752091]
[1742089018519,33.90752091,135.62,135.57,33.87752091]
[1742089018815,7.374,135.61,135.56,33.87752091]
[1742089019015,7.374,135.61,135.57,33.87752091]
[1742089019220,26.05334886,135.62,135.57,33.87752091]
[1742089020203,59.93086977,135.62,135.57,33.87752091]
[1742089020491,33.87752091,135.58,135.53,33.87752091]
[1742089020694,1.5817,135.59,135.5,201.8818]
[1742089020695,1.5817,135.59,135.55,33.87752091]
[1742089020898,54.10886977,135.59,135.51,7.3793]
[1742089021114,33.87752091,135.57,135.52,33.87752091]
[1742089021525,6.3889,135.58,135.53,33.87752091]
[1742089021725,40.26642091,135.58,135.53,33.87752091]
[1742089022229,6.3889,135.58,135.54,33.87752091]
[1742089022402,13.7646,135.58,135.54,33.87752091]
[1742089022826,47.64212091,135.58,135.52,33.87752091]
[1742089025223,47.64212091,135.58,135.5,33.87752091]
[1742089025224,33.87752091,135.55,135.5,33.87752091]
[1742089025530,33.87752091,135.54,135.49,33.87752091]
[1742089025833,33.87752091,135.54,135.48,33.87752091]
[1742089026330,7.3789,135.52,135.47,33.87752091]
[1742089026503,8.9606,135.52,135.48,33.87752091]
[1742089026826,1.5817,135.52,135.43,8.9709]
[1742089027138,35.45922091,135.52,135.47,33.87752091]
[1742089027301,1.5817,135.52,135.48,33.87752091]
[1742089028327,82.2,135.54,135.51,33.87752091]
[1742089028630,1.5817,135.56,135.53,33.87752091]
[1742089028818,1.5817,135.56,135.52,33.87752091]
[1742089029834,33.87752091,135.54,135.49,33.87752091]
[1742089030220,33.87752091,135.54,135.48,33.87752091]
[1742089030423,33.87752091,135.53,135.48,33.87752091]
[1742089030817,33.87752091,135.5,135.45,33.87752091]
[1742089032033,33.87752091,135.5,135.44,33.87752091]
[1742089032232,33.87752091,135.5,135.43,7.3836]
[1742089032233,35.41872091,135.49,135.43,33.87752091]
[1742089032423,35.41872091,135.49,135.44,33.87752091]
[1742089032811,42.79942091,135.49,135.44,33.87752091]
[1742089033133,35.41872091,135.49,135.44,33.87752091]
[1742089033327,1.5412,135.49,135.45,33.87752091]
[1742089033539,1.5412,135.49,135.43,7.3834]
[1742089033713,1.5412,135.49,135.46,33.87752091]
[1742089035141,6.4847,135.51,135.48,33.87752091]
[1742089035442,6.4847,135.51,135.5,33.87752091]
[1742089035818,6.4847,135.51,135.49,33.87752091]
[1742089036020,102.39084886,135.53,135.5,33.87752091]
[1742089036948,6.4847,135.54,135.51,33.87752091]
[1742089037234,6.4847,135.54,135.52,33.87752091]
[1742089037418,6.4847,135.54,135.5,7.3799]
[1742089037419,18.64964886,135.53,135.49,33.87752091]
[1742089037620,18.64964886,135.53,135.5,33.87752091]
[1742089037823,6.4847,135.54,135.5,33.87752091]
[1742089038846,6.4847,135.54,135.5,41.25742091]
[1742089039437,6.4847,135.54,135.51,33.87752091]
[1742089039739,1.5412,135.56,135.52,33.87752091]
[1742089040536,35.41872091,135.56,135.51,33.87752091]
[1742089041637,35.41872091,135.56,135.51,41.25672091]
[1742089042218,6.4847,135.57,135.54,33.87752091]
[1742089042418,6.4847,135.57,135.55,33.87752091]
[1742089042619,18.64964886,135.59,135.55,33.87752091]
[1742089042818,8.0259,135.6,135.57,33.87752091]
[1742089043047,41.90342091,135.6,135.55,33.87752091]
[1742089044045,8.0259,135.6,135.56,41.25432091]
[1742089044537,41.90342091,135.6,135.56,41.25432091]
[1742089045155,8.0259,135.6,135.57,33.87752091]
[1742089046124,33.90752091,135.62,135.58,33.87752091]
[1742089046125,0.03,135.62,135.58,33.87752091]
[1742089046540,0.03,135.62,135.59,33.87752091]
[1742089046842,0.03,135.62,135.6,33.87752091]
[1742089047230,0.03,135.62,135.6,41.25182091]
[1742089047431,0.03,135.62,135.61,33.87752091]
[1742089047754,0.03,135.62,135.59,41.25262091]
[1742089048044,0.03,135.62,135.6,33.87752091]
[1742089049149,0.03,135.62,135.61,33.87752091]
[1742089050334,0.03,135.62,135.6,33.87752091]
[1742089052344,0.03,135.62,135.61,33.87752091]
[1742089053330,0.03,135.62,135.6,33.87752091]
[1742089053821,0.03,135.62,135.59,33.87752091]
[1742089054545,33.90752091,135.62,135.57,33.87752091]
[1742089054721,33.90752091,135.62,135.55,33.87752091]
[1742089054722,33.87752091,135.6,135.55,33.87752091]
[1742089054930,33.87752091,135.59,135.54,33.87752091]
[1742089055136,33.87752091,135.58,135.54,33.87752091]
[1742089055339,41.25342091,135.58,135.54,33.87752091]
[1742089055635,7.3754,135.59,135.55,33.87752091]
[1742089055826,1.5647,135.6,135.56,33.87752091]
[1742089056450,35.44222091,135.6,135.55,33.87752091]
[1742089057246,1.5647,135.6,135.56,33.87752091]
[1742089057439,1.5647,135.6,135.53,25.8245]
[1742089057440,0.03,135.62,135.58,33.87752091]
[1742089058658,0.03,135.62,135.6,33.87752091]
[1742089059654,0.03,135.62,135.59,33.87752091]
[1742089060446,0.03,135.62,135.6,33.87752091]
[1742089060649,0.03,135.62,135.61,41.25152091]
[1742089062135,0.0001,135.62,135.61,41.25152091]
[1742089062832,0.03,135.67,135.61,41.25152091]
[1742089063032,0.03,135.67,135.66,67.75504182]
[1742089063456,0.0001,135.67,135.66,67.89720339]
[1742089063638,11.5467774,135.72,135.66,67.89720339]
[1742089063639,0.03,135.72,135.66,67.89720339]
[1742089063838,0.03,135.72,135.67,14.3908]
[1742089064045,0.03,135.72,135.68,33.87752091]
[1742089064637,33.87752091,135.71,135.66,7.04]
[1742089064852,40.18702091,135.71,135.66,40.91752091]
[1742089065060,6.3095,135.71,135.67,33.87752091]
[1742089065447,41.73702091,135.71,135.66,33.87752091]
[1742089065761,49.10582091,135.71,135.66,33.87752091]
[1742089066065,41.73702091,135.71,135.66,33.87752091]
[1742089066268,7.8595,135.71,135.67,33.87752091]
[1742089066445,41.73702091,135.71,135.66,33.87752091]
[1742089066757,33.87752091,135.7,135.65,33.87752091]
[1742089066962,49.10562091,135.71,135.66,33.87752091]
[1742089068568,15.2281,135.71,135.67,33.87752091]
[1742089069264,7.8595,135.71,135.67,33.87752091]
[1742089069564,7.8595,135.71,135.63,14.4126]
[1742089069565,7.8595,135.71,135.68,33.87752091]
[1742089070062,0.03,135.72,135.68,7.0]
[1742089070245,0.03,135.72,135.71,33.87752091]
[1742089072238,0.03,135.72,135.69,33.87752091]
[1742089072469,0.03,135.72,135.68,33.87752091]
[1742089072673,33.90752091,135.72,135.67,33.87752091]
[1742089072841,33.87752091,135.7,135.65,33.87752091]
[1742089073364,33.87752091,135.71,135.66,33.87752091]
[1742089073540,33.87752091,135.71,135.64,7.0]
[1742089073541,33.90752091,135.72,135.67,33.87752091]
[1742089074236,0.03,135.72,135.68,33.87752091]
[1742089074660,0.03,135.72,135.64,7.0]
[1742089074661,33.87752091,135.71,135.66,33.87752091]
[1742089075347,33.87752091,135.7,135.65,33.87752091]
[1742089075558,33.87752091,135.7,135.64,7.0]
[1742089075750,33.87752091,135.71,135.66,33.87752091]
[1742089076159,33.87752091,135.71,135.67,33.87752091]
[1742089076361,41.24622091,135.71,135.67,33.87752091]
[1742089077270,0.03,135.72,135.7,33.87752091]
[1742089077843,0.03,135.72,135.71,33.87752091]
[1742089078374,0.03,135.72,135.71,41.24612091]
[1742089079578,0.03,135.76,135.71,93.54524182]
[1742089079742,0.03,135.76,135.73,33.87752091]
[1742089080772,0.03,135.76,135.73,41.24492091]
[1742089080943,0.03,135.76,135.74,33.87752091]
[1742089081362,0.03,135.76,135.75,33.87752091]
[1742089082443,0.03,135.76,135.75,41.24392091]
[1742089083155,0.0001,135.76,135.75,41.24392091]
[1742089085046,0.0001,135.76,135.75,75.12144182]
[1742089085255,0.03,135.8,135.75,93.53764182]
[1742089085576,0.03,135.8,135.79,33.87752091]
[1742089085779,0.03,135.8,135.75,7.3664]
[1742089085948,0.03,135.8,135.79,33.87752091]
[1742089086781,0.03,135.8,135.79,41.24182091]
[1742089088761,0.03,135.8,135.78,33.87752091]
[1742089089267,0.03,135.8,135.75,33.94052091]
[1742089089268,33.90752091,135.8,135.75,33.94052091]
[1742089089461,0.03,135.8,135.76,33.87752091]
[1742089089864,0.03,135.8,135.77,33.87752091]
[1742089090974,0.03,135.8,135.78,33.87752091]
[1742089091675,0.03,135.8,135.79,33.87752091]
[1742089093186,0.03,135.8,135.79,41.24182091]
[1742089093977,0.0001,135.8,135.79,41.24182091]
[1742089096479,0.03,135.86,135.79,96.47402091]
[1742089096687,0.03,135.86,135.85,33.87752091]
[1742089097395,0.03,135.86,135.85,41.23852091]
[1742089098890,0.03,135.86,135.79,7.3643]
[1742089099071,0.03,135.86,135.81,33.87752091]
[1742089099392,0.03,135.86,135.83,33.87752091]
[1742089099966,0.03,135.86,135.77,130.5997]
[1742089099967,33.87752091,135.84,135.75,0.063]
[1742089100166,42.15952091,135.85,135.8,33.87752091]
[1742089100373,8.282,135.85,135.81,33.87752091]
[1742089100573,42.15952091,135.85,135.8,33.94052091]
[1742089100969,8.282,135.85,135.83,33.87752091]
[1742089101299,6.6416,135.85,135.84,33.87752091]
[1742089101598,6.6416,135.85,135.83,33.87752091]
[1742089101902,0.03,135.86,135.84,67.75504182]
[1742089102095,0.03,135.86,135.85,33.87752091]
[1742089102305,0.03,135.86,135.84,33.87752091]
[1742089102682,0.03,135.86,135.85,33.87752091]
[1742089103698,0.03,135.86,135.85,41.23852091]
[1742089105875,0.03,135.86,135.8,106.191]
[1742089106199,0.03,135.86,135.84,33.87752091]
[1742089106776,0.03,135.86,135.85,33.87752091]
[1742089107102,0.03,135.86,135.84,33.87752091]
[1742089107796,0.03,135.86,135.83,33.87752091]
[1742089108102,0.03,135.86,135.81,18.408]
[1742089108103,33.90752091,135.86,135.81,33.87752091]
[1742089108285,21.21778557,135.86,135.81,21.18778557]
[1742089108871,6.521,135.85,135.81,21.18778557]
[1742089110005,6.521,135.85,135.81,28.55078557]
[1742089110386,6.521,135.85,135.81,41.26598109]
[1742089111105,6.521,135.85,135.82,33.90298109]
[1742089111484,6.521,135.85,135.81,7.363]
[1742089111785,6.521,135.85,135.82,33.90298109]
[1742089112320,6.521,135.85,135.81,41.26598109]
[1742089112610,13.8821,135.85,135.81,33.90298109]
[1742089112778,6.521,135.85,135.82,33.90298109]
[1742089112984,0.03,135.86,135.83,33.90298109]
[1742089113295,0.03,135.86,135.84,33.90298109]
[1742089113611,0.03,135.86,135.83,33.90298109]
[1742089114913,21.66016157,135.83,135.8,0.063]
[1742089115089,52.69479152,135.81,135.8,0.063]
[1742089115408,59.21579152,135.81,135.8,0.063]
[1742089116294,59.21579152,135.81,135.75,0.063]
[1742089116500,33.90298109,135.78,135.75,0.063]
[1742089116675,33.90298109,135.79,135.75,0.063]
[1742089119012,33.90298109,135.76,135.75,0.063]
[1742089119307,52.55262995,135.76,135.75,0.063]
[1742089120527,1.518,135.77,135.75,0.063]
[1742089120807,86.54855309,135.76,135.75,0.063]
[1742089121009,86.54855309,135.76,135.7,2.0]
[1742089121305,33.90298109,135.71,135.7,2.0]
[1742089122308,60.52702995,135.71,135.7,2.0]
[1742089128009,41.87738109,135.71,135.7,2.0]
[1742089128228,7.9744,135.71,135.7,2.0]
[1742089128526,33.90298109,135.71,135.7,2.0]
[1742089132218,32.95724886,135.73,135.7,2.0]
[1742089132426,21.2347505,135.71,135.7,2.0]
[1742089132921,39.88439936,135.71,135.7,2.0]
[1742089133808,82.2,135.72,135.7,2.0]
[1742089134326,21.2347505,135.74,135.7,2.0]
[1742089134711,18.64964886,135.74,135.7,2.0]
[1742089134913,39.88439936,135.74,135.7,9.3691]
[1742089136044,21.2347505,135.73,135.7,9.3691]
[1742089136342,39.88439936,135.74,135.7,9.3691]
[1742089136945,21.2347505,135.73,135.7,9.3691]
[1742089137110,21.2347505,135.72,135.7,2.0]
[1742089137819,40.1687225,135.71,135.7,2.0]
[1742089141718,21.2347505,135.71,135.7,2.0]
[1742089141923,82.2,135.73,135.7,9.3691]
[1742089142933,18.67964886,135.75,135.71,21.2347505]
[1742089143119,0.03,135.75,135.72,21.2347505]
[1742089143324,0.03,135.75,135.73,21.2347505]
[1742089143642,0.03,135.75,135.74,21.2347505]
[1742089145044,0.03,135.75,135.74,28.6017505]
[1742089145435,0.0001,135.75,135.74,28.6017505]
[1742089146238,0.0001,135.75,135.74,28.88607364]
[1742089146623,28.9294505,135.85,135.8,21.2347505]
[1742089147018,21.2347505,135.85,135.81,7.3632]
[1742089147218,122.11439936,135.86,135.81,28.5979505]
[1742089147414,21.2347505,135.85,135.81,7.3632]
[1742089147650,21.2347505,135.85,135.8,28.5983505]
[1742089148138,103.4647505,135.86,135.81,21.2347505]
[1742089149023,103.4647505,135.86,135.81,28.5978505]
[1742089150641,0.03,135.86,135.83,21.2347505]
[1742089152927,0.03,135.86,135.85,21.2347505]
[1742089153441,0.03,135.86,135.84,21.2347505]
[1742089154626,0.03,135.86,135.84,28.5962505]
[1742089155147,20.0,135.82,135.75,1.6323]
[1742089155319,21.2347505,135.81,135.76,21.2347505]
[1742089155821,41.2347505,135.82,135.77,21.2347505]
[1742089156224,41.2347505,135.82,135.77,28.6000505]
[1742089156943,21.2347505,135.84,135.79,21.2347505]
[1742089157454,21.2347505,135.82,135.77,21.2347505]
[1742089157754,21.2347505,135.81,135.77,21.2347505]
[1742089158452,21.2347505,135.82,135.77,28.5996505]
[1742089159148,39.88439936,135.83,135.78,21.2347505]
[1742089159460,21.2347505,135.84,135.79,21.2347505]
[1742089160246,21.2347505,135.84,135.79,28.5984505]
[1742089160947,21.2347505,135.81,135.77,7.3649]
[1742089161148,21.2347505,135.82,135.77,28.5996505]
[1742089161348,18.64964886,135.83,135.77,28.5996505]
[1742089161549,39.88439936,135.83,135.78,21.2347505]
[1742089162550,39.88439936,135.83,135.78,28.5994505]
[1742089163148,47.24659936,135.83,135.78,28.5994505]
[1742089163349,21.2347505,135.82,135.77,21.2347505]
[1742089164730,28.5974505,135.82,135.77,28.5999505]
[1742089165353,41.37691207,135.78,135.75,0.063]
[1742089165562,21.2347505,135.76,135.75,0.063]
[1742089166047,21.2347505,135.77,135.75,0.063]
[1742089166652,41.2347505,135.78,135.75,0.063]
[1742089167865,48.5997505,135.78,135.75,0.063]
[1742089168266,41.2347505,135.78,135.75,0.063]
[1742089169058,21.2347505,135.77,135.75,0.063]
[1742089169266,20.0,135.77,135.75,0.063]
[1742089170160,21.2347505,135.79,135.75,0.063]
[1742089170463,103.4347505,135.8,135.75,21.2977505]
[1742089170660,21.2347505,135.79,135.75,0.063]
[1742089170966,21.2347505,135.78,135.75,0.063]
[1742089171460,21.2347505,135.77,135.75,0.063]
[1742089171772,21.2347505,135.78,135.75,0.063]
[1742089171969,82.2,135.8,135.75,0.063]
[1742089172157,82.2,135.8,135.75,21.2977505]
[1742089172158,103.4347505,135.8,135.75,21.2977505]
[1742089173361,20.0,135.79,135.76,21.2347505]
[1742089173564,21.2347505,135.82,135.77,21.2347505]
[1742089173767,21.2347505,135.83,135.78,21.2347505]
[1742089174073,21.2347505,135.82,135.77,28.5995505]
[1742089174271,21.2347505,135.81,135.77,7.3648]
[1742089174576,0.03,135.79,135.77,7.3648]
[1742089174745,21.2647505,135.79,135.75,0.063]
[1742089174940,21.2647505,135.79,135.75,7.4294]
[1742089176773,0.03,135.79,135.75,28.6641505]
[1742089178084,0.03,135.79,135.77,21.2347505]
[1742089178370,0.03,135.79,135.78,21.2347505]
[1742089178766,0.03,135.79,135.76,28.6006505]
[1742089180359,0.03,135.79,135.76,7.3659]
[1742089180561,0.03,135.79,135.78,21.2347505]
[1742089180761,0.03,135.79,135.78,28.5995505]
[1742089184876,0.03,135.86,135.78,150.05060559]
[1742089185176,0.03,135.86,135.83,21.2347505]
[1742089185356,21.2347505,135.85,135.8,28.0347505]
[1742089185554,21.2347505,135.84,135.79,21.2347505]
[1742089186470,21.2347505,135.85,135.8,21.2347505]
[1742089186972,21.2347505,135.85,135.8,28.5979505]
[1742089188488,28.5958505,135.85,135.8,28.5979505]
[1742089188782,21.2347505,135.85,135.8,28.5979505]
[1742089189784,20.0,135.85,135.82,21.2347505]
[1742089190278,20.0,135.85,135.81,21.2347505]
[1742089190978,20.0,135.85,135.8,47.0073505]
[1742089191285,21.2347505,135.83,135.79,7.3642]
[1742089191579,21.2347505,135.82,135.79,7.3642]
[1742089191784,21.2347505,135.82,135.78,8.3646]
[1742089192282,41.2347505,135.83,135.78,29.5993505]
[1742089192577,20.0,135.83,135.78,29.5993505]
[1742089192783,20.0,135.83,135.79,21.2347505]
[1742089193583,20.0,135.83,135.8,7.3637]
[1742089193889,20.0,135.83,135.8,28.5984505]
[1742089195882,20.0,135.83,135.81,21.2347505]
[1742089196070,20.0,135.83,135.82,7.3626]
[1742089198387,20.0,135.83,135.81,7.3632]
[1742089199090,20.0,135.83,135.82,1.0]
[1742089199583,20.0,135.83,135.82,8.3626]
[1742089201192,21.2647505,135.85,135.82,1.0]
[1742089201682,28.6259505,135.85,135.82,1.0]
[1742089202263,21.2347505,135.83,135.82,1.0]
[1742089202672,22.7473505,135.84,135.82,1.0]
[1742089204065,128.35476093,135.83,135.82,1.0]
[1742089204464,134.99259936,135.83,135.82,1.0]
[1742089205383,116.3429505,135.83,135.82,1.0]
[1742089205570,88.3282,135.83,135.82,1.0]
[1742089207269,109.5629505,135.83,135.82,1.0]
[1742089208593,116.9250505,135.83,135.82,1.0]
[1742089209493,135.8590225,135.83,135.82,1.0]
[1742089209688,135.57469936,135.83,135.82,1.0]
[1742089210991,20.0,135.8,135.78,7.4278]
[1742089211193,21.2347505,135.82,135.78,7.4278]
[1742089211380,128.21259936,135.83,135.78,28.6625505]
[1742089211886,109.5629505,135.83,135.78,28.6625505]
[1742089212994,21.2347505,135.8,135.78,0.063]
[1742089213306,41.2347505,135.8,135.78,0.063]
[1742089213497,21.2347505,135.79,135.78,0.063]
[1742089214974,41.2347505,135.8,135.78,0.063]
[1742089215673,20.0,135.8,135.78,0.063]
[1742089216191,20.0,135.8,135.78,2.063]
[1742089216490,109.5629505,135.83,135.78,23.2977505]
[1742089216794,82.2,135.83,135.8,7.3637]
[1742089217097,1.5126,135.84,135.8,28.5984505]
[1742089217267,0.03,135.85,135.81,21.2347505]
[1742089219797,0.03,135.85,135.81,28.5978505]
[1742089220296,21.2647505,135.85,135.8,28.5982505]
[1742089220710,21.2347505,135.84,135.8,7.3635]
[1742089220877,21.2647505,135.85,135.8,28.5982505]
[1742089221700,20.0,135.84,135.81,21.2347505]
[1742089222001,0.03,135.85,135.81,21.2347505]
[1742089222972,20.0,135.84,135.81,21.2347505]
[1742089223786,20.0,135.84,135.81,7.3628]
[1742089223985,0.03,135.84,135.82,21.2347505]
[1742089224178,0.03,135.84,135.83,21.2347505]
[1742089225676,0.03,135.84,135.83,28.5968505]
[1742089229096,0.03,135.84,135.83,30.5968505]
[1742089231403,0.03,135.84,135.83,70.48124986]
[1742089231608,0.03,135.84,135.83,49.24649936]
[1742089232098,0.03,135.84,135.83,30.5968505]
[1742089234392,0.03,135.84,135.83,9.3621]
[1742089234597,0.03,135.84,135.83,30.5968505]
[1742089237005,21.2647505,135.84,135.83,2.0]
[1742089237702,0.03,135.84,135.83,2.0]
[1742089237913,0.03,135.84,135.83,9.3621]
[1742089238081,20.03,135.84,135.83,9.3621]
[1742089238286,20.03,135.84,135.83,2.0]
[1742089239511,20.03,135.84,135.83,9.3621]
[1742089239719,20.03,135.84,135.83,2.0]
[1742089240316,0.03,135.84,135.83,2.0]
[1742089241618,0.03,135.84,135.83,3.0]
[1742089242230,0.03,135.84,135.83,10.3621]
[1742089242809,0.03,135.84,135.83,3.0]
[1742089243511,0.03,135.84,135.83,31.5968505]
[1742089252615,0.03,135.85,135.83,71.765573]
[1742089252917,0.03,135.86,135.85,18.933972]
[1742089252918,0.0001,135.86,135.85,18.933972]
[1742089253130,0.0001,135.86,135.85,40.1687225]
[1742089253313,0.0001,135.86,135.85,41.27230147]
[1742089253505,0.0001,135.86,135.85,40.1687225]
[1742089253701,0.0001,135.86,135.85,47.5297225]
[1742089255316,0.03,135.93,135.85,65.9323225]
[1742089255516,0.03,135.93,135.88,21.2347505]
[1742089256020,21.2647505,135.93,135.88,28.5941505]
[1742089258618,0.03,135.93,135.88,28.5941505]
[1742089258932,20.0,135.92,135.88,28.5941505]
[1742089261133,0.03,135.93,135.88,47.5281225]
[1742089261733,0.0001,135.89,135.88,47.5281225]
[1742089262327,0.0001,135.89,135.88,128.2281225]
[1742089262625,0.0001,135.89,135.88,149.462873]
[1742089263014,0.0001,135.89,135.88,128.2281225]
[1742089263417,0.0001,135.89,135.88,149.462873]
[1742089263621,0.03,135.93,135.89,18.933972]
[1742089263814,0.03,135.93,135.92,39.88439936]
[1742089264117,0.03,135.93,135.92,46.7687225]
[1742089265432,0.03,135.94,135.93,18.64964886]
[1742089265733,0.03,135.94,135.93,41.27152017]
[1742089266033,0.03,135.94,135.93,121.97152017]
[1742089267402,0.03,135.94,135.93,129.32822017]
[1742089268728,0.03,135.94,135.93,47.24109936]
[1742089269430,0.03,135.94,135.93,47.5254225]
[1742089269736,0.03,135.94,135.93,47.24109936]
[1742089269910,0.03,135.94,135.93,47.5254225]
[1742089272006,0.03,135.94,135.93,48.62824476]
[1742089273829,0.03,135.94,135.93,129.32824476]
[1742089276233,0.03,135.97,135.93,140.01306816]
[1742089276435,0.03,135.97,135.96,32.17742276]
[1742089276908,0.03,135.97,135.96,32.4617459]
[1742089277422,0.03,135.97,135.96,39.8168459]
[1742089278029,0.03,135.97,135.96,93.9279415]
[1742089278537,0.03,135.98,135.97,18.64964886]
[1742089278840,0.03,135.98,135.97,38.73742276]
[1742089279142,0.03,136.0,135.97,39.98211017]
[1742089279436,0.03,136.0,135.99,32.17742276]
[1742089279639,0.03,136.03,135.99,32.17742276]
[1742089279640,0.03,136.03,136.0,18.933972]
[1742089279811,0.0001,136.03,136.0,100.73614998]
[1742089280235,0.0001,136.03,136.02,60.87038368]
[1742089280533,0.0001,136.03,136.02,67.45038368]
[1742089281033,0.0001,136.03,136.02,67.73470682]
[1742089281542,0.0001,136.03,136.02,75.08650682]
[1742089281710,0.0001,136.03,136.02,155.78650682]
[1742089282351,0.0001,136.03,136.02,156.28650682]
[1742089282517,0.03,136.09,136.03,18.933972]
[1742089282713,0.03,136.09,136.06,40.04433941]
[1742089283619,0.03,136.09,136.06,47.39393941]
[1742089286044,0.03,136.09,136.06,39.76001627]
[1742089286214,0.03,136.09,136.06,141.85470682]
[1742089286415,0.03,136.09,136.08,0.28432314]
[1742089286717,0.03,136.09,136.08,67.71470682]
[1742089287124,0.03,136.09,136.08,46.60433941]
[1742089287324,0.03,136.09,136.08,46.64433941]
[1742089288345,0.03,136.09,136.08,53.99293941]
[1742089289239,0.03,136.09,136.08,75.10330682]
[1742089289442,0.03,136.09,136.08,76.10330682]
[1742089289816,0.03,136.09,136.08,76.08330682]
[1742089291449,0.03,136.09,136.08,156.78330682]
[1742089291626,7.5883,136.16,136.11,18.64964886]
[1742089291952,7.5883,136.16,136.15,21.11036741]
[1742089292144,7.5883,136.19,136.15,21.11036741]
[1742089292331,7.5883,136.19,136.17,21.11036741]
[1742089292529,7.5883,136.19,136.18,7.3432]
[1742089293135,7.5883,136.19,136.16,21.11036741]
[1742089293452,7.5883,136.19,136.16,18.64964886]
[1742089293657,7.5883,136.19,136.18,21.11036741]
[1742089294127,2.4821435,136.2,136.18,39.76001627]
[1742089294332,2.4821435,136.2,136.19,39.76001627]
[1742089294855,2.4821435,136.2,136.19,25.99224886]
[1742089295032,2.4821435,136.2,136.19,39.76001627]
[1742089295360,2.4821435,136.2,136.19,46.36001627]
[1742089295956,2.4821435,136.2,136.19,53.70261627]
[1742089297053,2.4821435,136.2,136.19,46.36001627]
[1742089297230,2.4821435,136.2,136.16,81.9432154]
[1742089297231,2.4821435,136.2,136.16,80.84216157]
[1742089297432,2.4821435,136.2,136.18,21.11036741]
[1742089298054,2.4821435,136.2,136.19,21.11036741]
[1742089298237,2.4821435,136.2,136.19,39.76001627]
[1742089298637,2.4821435,136.2,136.19,18.64964886]
[1742089299157,2.4821435,136.2,136.19,47.10261627]
[1742089299344,2.4821435,136.2,136.19,47.38693941]
[1742089300154,2.4821435,136.2,136.19,128.08693941]
[1742089301341,2.4821435,136.2,136.19,120.46001627]
[1742089301565,2.4821435,136.2,136.19,99.34964886]
[1742089301763,2.4821435,136.2,136.19,127.80261627]
[1742089301965,2.4821435,136.2,136.19,120.46001627]
[1742089302152,2.4821435,136.2,136.19,99.34964886]
[1742089302342,2.4821435,136.2,136.18,18.64964886]
[1742089302843,2.4821435,136.2,136.18,21.11036741]
[1742089303640,2.4821435,136.2,136.17,27.71036741]
[1742089303942,9.8242435,136.2,136.16,39.76001627]
[1742089304162,30.93461091,136.2,136.16,18.64964886]